[Event "44th Chess Olympiad Women 2022"]
[Site "Chennai"]
[Date "2022.08.07"]
[Round "9.33"]
[White "Obondo, Cynthia Awino"]
[Black "Moaataz, Ayah"]
[Result "0-1"]
[WhiteElo "1439"]
[BlackElo "2119"]
[Annotator "NA"]
[PlyCount "104"]
[EventDate "2022.??.??"]
[TimeControl "60"]

1. d4 {[%emt 0:00:18]} d5 {[%emt 0:00:04]} 2. Nf3 {[%emt 0:01:12]} Nf6 {
[%emt 0:00:04]} 3. e3 {[%emt 0:00:24]} c5 {[%emt 0:00:10]} 4. b3 {[%emt 0:00:
00]} Nc6 {[%emt 0:01:09]} 5. Bb2 {[%emt 0:00:32]} Bg4 {[%emt 0:01:23]} 6. Nbd2
{[%emt 0:01:09]} cxd4 {[%emt 0:00:24]} 7. exd4 {[%emt 0:00:19]} e6 {[%emt 0:00:
00]} 8. Bd3 {[%emt 0:00:35]} Bd6 {[%emt 0:00:29]} 9. h3 {[%emt 0:01:43]} Bh5 {
[%emt 0:02:26]} 10. O-O {[%emt 0:01:37]} O-O {[%emt 0:00:00]} 11. Qe1 {[%emt 0:
00:00]} Nb4 {[%emt 0:00:08]} 12. a3 {[%emt 0:10:08]} Nxd3 {[%emt 0:00:38]} 13.
cxd3 {[%emt 0:00:07]} Bg6 {[%emt 0:04:43]} 14. Qe3 {[%emt 0:00:53]} Qe7 {
[%emt 0:07:11]} 15. Ne5 {[%emt 0:00:24]} Rac8 {[%emt 0:04:39]} 16. Rfc1 {
[%emt 0:22:03]} Nd7 {[%emt 0:03:43]} 17. f4 {[%emt 0:01:20]} Nb6 {[%emt 0:00:
00]} 18. Ndf3 {[%emt 0:01:16]} Rxc1+ {[%emt 0:03:10]} 19. Qxc1 {[%emt 0:01:24]}
Rc8 {[%emt 0:04:53]} 20. Qd2 {[%emt 0:02:11]} Qe8 {[%emt 0:14:49]} 21. Qa5 {
[%emt 0:10:54]} Bb8 {[%emt 0:17:59]} 22. Rc1 {[%emt 0:06:22]} f6 {[%emt 0:00:
00]} 23. Rxc8 {[%emt 0:05:07]} Qxc8 {[%emt 0:00:05]} 24. Nxg6 {[%emt 0:00:28]}
hxg6 {[%emt 0:00:13]} 25. Qd2 {[%emt 0:02:26]} Bd6 {[%emt 0:01:03]} 26. g3 {
[%emt 0:02:00]} Qd7 {[%emt 0:03:42]} 27. a4 {[%emt 0:00:51]} Nc8 {[%emt 0:00:
00]} 28. Bc3 {[%emt 0:01:13]} Qc7 {[%emt 0:01:47]} 29. b4 {[%emt 0:00:52]} Ne7
{[%emt 0:00:42]} 30. Kg2 {[%emt 0:00:36]} Nf5 {[%emt 0:00:42]} 31. b5 {[%emt 0:
00:00]} g5 {[%emt 0:00:55]} 32. fxg5 {[%emt 0:00:35]} Bxg3 {[%emt 0:00:12]} 33.
gxf6 {[%emt 0:00:32]} gxf6 {[%emt 0:05:16]} 34. Bb4 {[%emt 0:00:25]} Bf4 {
[%emt 0:01:14]} 35. Qf2 {[%emt 0:00:39]} Qh7 {[%emt 0:05:15]} 36. Bd2 {[%emt 0:
00:00]} Qg6+ {[%emt 0:00:38]} 37. Kf1 {[%emt 0:00:52]} Ng3+ {[%emt 0:01:44]}
38. Ke1 {[%emt 0:00:37]} Qxd3 {[%emt 0:00:43]} 39. Bxf4 {[%emt 0:00:53]} Qb1+ {
[%emt 0:00:04]} 40. Kd2 {[%emt 0:01:09]} Ne4+ {[%emt 0:01:00]} 41. Ke2 {
[%emt 0:30:07]} Nxf2 {[%emt 0:31:02]} 42. Kxf2 {[%emt 0:00:01]} Qc2+ {[%emt 0:
00:00]} 43. Kg3 {[%emt 0:00:42]} Qxa4 {[%emt 0:00:09]} 44. Bb8 {[%emt 0:00:39]}
Qxb5 {[%emt 0:00:39]} 45. Bxa7 {[%emt 0:00:22]} Qd3 {[%emt 0:00:08]} 46. Bb6 {
[%emt 0:00:45]} e5 {[%emt 0:00:32]} 47. dxe5 {[%emt 0:00:14]} fxe5 {[%emt 0:00:
00]} 48. Kf2 {[%emt 0:00:25]} Qc2+ {[%emt 0:00:23]} 49. Kg3 {[%emt 0:00:00]}
Qb3 {[%emt 0:00:00]} 50. Kg4 {[%emt 0:00:00]} Qb4+ {[%emt 0:00:00]} 51. Kh5 {
[%emt 0:00:00]} e4 {[%emt 0:00:00]} 52. Ne5 {[%emt 0:00:00]} Qxb6 {[%emt 0:00:
00]} 0-1

[Event "44th Chess Olympiad Women 2022"]
[Site "Chennai"]
[Date "2022.08.07"]
[Round "9.33"]
[White "Wafa, Shahenda"]
[Black "Madelta Glenda"]
[Result "1-0"]
[WhiteElo "2115"]
[BlackElo "1516"]
[Annotator "NA COMBH"]
[PlyCount "80"]
[EventDate "2022.??.??"]
[TimeControl "60"]

1. e4 {[%emt 0:00:03]} e6 {[%emt 0:00:30]} 2. d4 {[%emt 0:00:09]} d5 {[%emt 0:
00:00]} 3. Nc3 {[%emt 0:00:09]} Nf6 {[%emt 0:00:30]} 4. Bg5 {[%emt 0:00:35]}
Bb4 {[%emt 0:00:37]} 5. Nge2 {[%emt 0:01:50]} dxe4 {[%emt 0:09:52]} 6. a3 {
[%emt 0:00:14]} Be7 {[%emt 0:03:11]} 7. Bxf6 {[%emt 0:00:45]} Bxf6 {[%emt 0:00:
00]} 8. Nxe4 {[%emt 0:00:06]} Nc6 {[%emt 0:00:29]} 9. c3 {[%emt 0:01:44]} b6 {
[%emt 0:01:52]} 10. N2g3 {[%emt 0:04:38]} Bb7 {[%emt 0:01:26]} 11. Nh5 {
[%emt 0:13:05]} Qe7 {[%emt 0:09:40]} 12. Qf3 {[%emt 0:07:34]} O-O-O {[%emt 0:
00:00]} 13. Nhxf6 {[%emt 0:00:16]} Nxd4 {[%emt 0:06:34]} 14. cxd4 {[%emt 0:00:
00]} Rxd4 {[%emt 0:00:22]} 15. Ba6 {[%emt 0:15:31]} Bxa6 {[%emt 0:16:51]} 16.
Nc5 {[%emt 0:00:22]} Rd5 {[%emt 0:00:37]} 17. Nxa6 {[%emt 0:00:47]} gxf6 {
[%emt 0:03:10]} 18. O-O {[%emt 0:01:07]} c5 {[%emt 0:04:23]} 19. b4 {[%emt 0:
00:00]} Qb7 {[%emt 0:01:10]} 20. b5 {[%emt 0:01:04]} Rg5 {[%emt 0:09:52]} 21.
Qxb7+ {[%emt 0:00:17]} Kxb7 {[%emt 0:00:14]} 22. Rfd1 {[%emt 0:00:07]} Kc8 {
[%emt 0:00:27]} 23. Rd6 {[%emt 0:00:50]} Rd5 {[%emt 0:03:34]} 24. Rd1 {[%emt 0:
00:00]} Rxd1+ {[%emt 0:05:14]} 25. Rxd1 {[%emt 0:00:09]} Rd8 {[%emt 0:00:38]}
26. Rxd8+ {[%emt 0:00:32]} Kxd8 {[%emt 0:00:02]} 27. Nb8 {[%emt 0:00:56]} Kc7 {
[%emt 0:01:06]} 28. Nc6 {[%emt 0:00:13]} a6 {[%emt 0:00:09]} 29. a4 {[%emt 0:
00:00]} axb5 {[%emt 0:00:26]} 30. axb5 {[%emt 0:00:05]} Kd6 {[%emt 0:00:26]}
31. Kf1 {[%emt 0:00:27]} c4 {[%emt 0:01:47]} 32. Ke2 {[%emt 0:01:39]} Kc5 {
[%emt 0:00:26]} 33. Na7 {[%emt 0:00:30]} Kb4 {[%emt 0:01:15]} 34. Kd2 {[%emt 0:
00:00]} f5 {[%emt 0:01:19]} 35. g3 {[%emt 0:03:33]} f6 {[%emt 0:01:50]} 36. Kc2
{[%emt 0:00:27]} e5 {[%emt 0:03:21]} 37. h4 {[%emt 0:01:26]} Kc5 {[%emt 0:00:
00]} 38. Kc3 {[%emt 0:00:19]} f4 {[%emt 0:00:35]} 39. gxf4 {[%emt 0:02:20]}
exf4 {[%emt 0:00:33]} 40. h5 {[%emt 0:00:24]} f3 {[%emt 0:00:00]} 1-0

[Event "44th Chess Olympiad Women 2022"]
[Site "Chennai"]
[Date "2022.08.07"]
[Round "9.33"]
[White "Wafa, Shrook"]
[Black "Mongeli, Sasha"]
[Result "1/2-1/2"]
[WhiteElo "2141"]
[BlackElo "1672"]
[Annotator "RC"]
[PlyCount "145"]
[EventDate "2022.??.??"]
[TimeControl "60"]

1. e4 {[%emt 0:00:04]} c6 {[%emt 0:00:12]} 2. d4 {[%emt 0:00:15]} d5 {[%emt 0:
00:00]} 3. Nc3 {[%emt 0:00:12]} dxe4 {[%emt 0:00:36]} 4. Nxe4 {[%emt 0:00:15]}
Nd7 {[%emt 0:00:41]} 5. Nf3 {[%emt 0:01:01]} Ngf6 {[%emt 0:00:33]} 6. Bd3 {
[%emt 0:00:38]} Nxe4 {[%emt 0:02:17]} 7. Bxe4 {[%emt 0:00:16]} Nf6 {[%emt 0:00:
00]} 8. Bd3 {[%emt 0:00:37]} Bg4 {[%emt 0:01:47]} 9. c3 {[%emt 0:01:28]} e6 {
[%emt 0:01:33]} 10. h3 {[%emt 0:01:47]} Bh5 {[%emt 0:09:52]} 11. g4 {[%emt 0:
00:00]} Bg6 {[%emt 0:03:24]} 12. Bf4 {[%emt 0:03:10]} Qd5 {[%emt 0:06:14]} 13.
O-O {[%emt 0:04:14]} Bxd3 {[%emt 0:03:13]} 14. Qxd3 {[%emt 0:00:11]} Qe4 {
[%emt 0:00:28]} 15. Qxe4 {[%emt 0:03:44]} Nxe4 {[%emt 0:00:09]} 16. Rfe1 {
[%emt 0:00:12]} Nf6 {[%emt 0:01:53]} 17. c4 {[%emt 0:01:22]} Bb4 {[%emt 0:00:
00]} 18. Re3 {[%emt 0:04:37]} O-O-O {[%emt 0:03:41]} 19. g5 {[%emt 0:04:15]}
Ne8 {[%emt 0:08:28]} 20. c5 {[%emt 0:01:51]} a6 {[%emt 0:10:27]} 21. Re4 {
[%emt 0:05:43]} Ba5 {[%emt 0:02:37]} 22. Ne5 {[%emt 0:01:58]} Rf8 {[%emt 0:00:
00]} 23. Nc4 {[%emt 0:05:06]} Bc7 {[%emt 0:01:37]} 24. Be3 {[%emt 0:03:20]} g6
{[%emt 0:04:15]} 25. b4 {[%emt 0:03:16]} Ng7 {[%emt 0:02:23]} 26. a4 {[%emt 0:
00:00]} Nf5 {[%emt 0:02:21]} 27. Rb1 {[%emt 0:07:41]} Rd5 {[%emt 0:05:56]} 28.
h4 {[%emt 0:04:59]} Rfd8 {[%emt 0:01:52]} 29. b5 {[%emt 0:04:36]} axb5 {
[%emt 0:03:22]} 30. axb5 {[%emt 0:02:58]} cxb5 {[%emt 0:00:11]} 31. Rxb5 {
[%emt 0:00:30]} Nxd4 {[%emt 0:01:31]} 32. Rb2 {[%emt 0:08:11]} Nf5 {[%emt 0:00:
00]} 33. Nb6+ {[%emt 0:01:33]} Bxb6 {[%emt 0:00:52]} 34. cxb6 {[%emt 0:00:32]}
Nxe3 {[%emt 0:03:44]} 35. Rxe3 {[%emt 0:00:13]} R8d6 {[%emt 0:00:36]} 36. Rf3 {
[%emt 0:04:52]} Rf5 {[%emt 0:01:11]} 37. Ra3 {[%emt 0:00:35]} Kd7 {[%emt 0:00:
00]} 38. Ra7 {[%emt 0:04:31]} Kc6 {[%emt 0:00:41]} 39. Ra8 {[%emt 0:00:08]} Rb5
{[%emt 0:02:49]} 40. Rc8+ {[%emt 0:02:15]} Kxb6 {[%emt 0:00:16]} 41. Rxb5+ {
[%emt 0:30:13]} Kxb5 {[%emt 0:30:11]} 42. Rc7 {[%emt 0:00:06]} Ka6 {[%emt 0:00:
00]} 43. Rxf7 {[%emt 0:00:00]} b5 {[%emt 0:00:00]} 44. Rxh7 {[%emt 0:00:00]} b4
{[%emt 0:00:00]} 45. Rc7 {[%emt 0:00:00]} b3 {[%emt 0:00:00]} 46. Rc1 {[%emt 0:
00:00]} Kb5 {[%emt 0:00:00]} 47. Kh2 {[%emt 0:00:00]} Kb4 {[%emt 0:00:00]} 48.
h5 {[%emt 0:00:00]} gxh5 {[%emt 0:00:00]} 49. g6 {[%emt 0:00:00]} e5 {[%emt 0:
00:00]} 50. g7 {[%emt 0:00:00]} Rg6 {[%emt 0:00:00]} 51. Rc7 {[%emt 0:00:00]}
b2 {[%emt 0:00:00]} 52. Rb7+ {[%emt 0:00:00]} Kc3 {[%emt 0:00:00]} 53. Rc7+ {
[%emt 0:00:00]} Kd2 {[%emt 0:02:55]} 54. Rb7 {[%emt 0:00:00]} Kc3 {[%emt 0:00:
00]} 55. Rc7+ {[%emt 0:00:00]} Kd3 {[%emt 0:02:07]} 56. Rb7 {[%emt 0:00:00]}
Rxg7 {[%emt 0:01:46]} 57. Rxb2 {[%emt 0:00:00]} Rg4 {[%emt 0:00:38]} 58. Kh3 {
[%emt 0:00:00]} Rc4 {[%emt 0:01:31]} 59. Rb5 {[%emt 0:00:00]} Ke4 {[%emt 0:00:
00]} 60. Kg2 {[%emt 0:00:00]} Rc2 {[%emt 0:00:42]} 61. Rb3 {[%emt 0:00:00]} Kf5
{[%emt 0:00:41]} 62. Rf3+ {[%emt 0:00:00]} Kg5 {[%emt 0:00:11]} 63. Rg3+ {
[%emt 0:00:00]} Kh6 {[%emt 0:00:13]} 64. Rg8 {[%emt 0:00:00]} Rc4 {[%emt 0:00:
00]} 65. Re8 {[%emt 0:00:00]} Rc5 {[%emt 0:01:47]} 66. Kg3 {[%emt 0:00:00]}
Rc3+ {[%emt 0:00:36]} 67. Kg2 {[%emt 0:00:00]} Rc5 {[%emt 0:00:15]} 68. Kg3 {
[%emt 0:00:00]} Kg5 {[%emt 0:00:34]} 69. Rxe5+ {[%emt 0:00:00]} Rxe5 {[%emt 0:
00:00]} 70. f4+ {[%emt 0:00:00]} Kf5 {[%emt 0:00:12]} 71. fxe5 {[%emt 0:00:00]}
Kxe5 {[%emt 0:00:07]} 72. Kh4 {[%emt 0:00:00]} Kf4 {[%emt 0:00:07]} 73. Kxh5 {
[%emt 0:00:00]} 1/2-1/2

[Event "44th Chess Olympiad Women 2022"]
[Site "Chennai"]
[Date "2022.08.07"]
[Round "9.34"]
[White "Alvarez Gutierrez, Patricia"]
[Black "Mirza, Diana"]
[Result "1-0"]
[WhiteElo "1715"]
[BlackElo "1898"]
[Annotator "NA"]
[PlyCount "79"]
[EventDate "2022.??.??"]
[TimeControl "60"]

1. d4 {[%emt 0:00:08]} Nf6 {[%emt 0:00:05]} 2. c4 {[%emt 0:00:08]} g6 {[%emt 0:
00:00]} 3. Nc3 {[%emt 0:00:08]} Bg7 {[%emt 0:00:04]} 4. e4 {[%emt 0:00:09]} d6
{[%emt 0:00:03]} 5. Nge2 {[%emt 0:00:18]} O-O {[%emt 0:01:39]} 6. Ng3 {[%emt 0:
00:00]} e5 {[%emt 0:06:30]} 7. d5 {[%emt 0:00:37]} a5 {[%emt 0:06:56]} 8. h4 {
[%emt 0:00:21]} h5 {[%emt 0:00:44]} 9. Bg5 {[%emt 0:00:34]} Na6 {[%emt 0:01:52]
} 10. Be2 {[%emt 0:00:30]} Qe8 {[%emt 0:07:17]} 11. Qd2 {[%emt 0:02:49]} Kh7 {
[%emt 0:05:34]} 12. Nb5 {[%emt 0:06:05]} Bd7 {[%emt 0:11:34]} 13. f3 {[%emt 0:
00:00]} Bxb5 {[%emt 0:05:08]} 14. cxb5 {[%emt 0:00:12]} Nc5 {[%emt 0:00:06]}
15. Nf1 {[%emt 0:06:54]} Nfd7 {[%emt 0:08:41]} 16. g4 {[%emt 0:03:07]} f6 {
[%emt 0:13:27]} 17. Be3 {[%emt 0:04:47]} hxg4 {[%emt 0:01:17]} 18. h5 {[%emt 0:
00:00]} g5 {[%emt 0:00:58]} 19. Ng3 {[%emt 0:00:39]} Rh8 {[%emt 0:08:43]} 20.
fxg4 {[%emt 0:11:35]} Kg8 {[%emt 0:00:18]} 21. Bf3 {[%emt 0:06:16]} Bh6 {
[%emt 0:01:54]} 22. Nf5 {[%emt 0:01:55]} Qf7 {[%emt 0:01:18]} 23. Qc2 {[%emt 0:
00:00]} Kh7 {[%emt 0:02:59]} 24. b3 {[%emt 0:04:18]} Rhc8 {[%emt 0:02:47]} 25.
Rc1 {[%emt 0:03:01]} Bf8 {[%emt 0:00:34]} 26. Qd2 {[%emt 0:01:44]} Bh6 {
[%emt 0:03:02]} 27. Bg2 {[%emt 0:01:41]} b6 {[%emt 0:00:55]} 28. Ke2 {[%emt 0:
00:00]} Qe8 {[%emt 0:03:32]} 29. Rcf1 {[%emt 0:01:17]} Qd8 {[%emt 0:04:55]} 30.
Rf2 {[%emt 0:06:19]} Nf8 {[%emt 0:01:12]} 31. Rhf1 {[%emt 0:01:37]} Ncd7 {
[%emt 0:00:04]} 32. Nxh6 {[%emt 0:06:41]} Kxh6 {[%emt 0:00:01]} 33. Rxf6+ {
[%emt 0:00:33]} Nxf6 {[%emt 0:00:31]} 34. Bxg5+ {[%emt 0:00:07]} Kh7 {[%emt 0:
00:00]} 35. Bxf6 {[%emt 0:04:35]} Qd7 {[%emt 0:00:08]} 36. Qg5 {[%emt 0:00:35]}
Qxb5+ {[%emt 0:00:24]} 37. Ke1 {[%emt 0:02:59]} Qb4+ {[%emt 0:01:31]} 38. Kf2 {
[%emt 0:00:57]} Qc5+ {[%emt 0:01:08]} 39. Kg3 {[%emt 0:00:13]} Ne6 {[%emt 0:00:
00]} 40. Qg6# {[%emt 0:00:16]} 1-0

[Event "44th Chess Olympiad Women 2022"]
[Site "Chennai"]
[Date "2022.08.07"]
[Round "9.34"]
[White "Granados Diaz, Maria Esther"]
[Black "Kanyamarala, Trisha"]
[Result "1/2-1/2"]
[WhiteElo "1888"]
[BlackElo "2270"]
[Annotator "RC"]
[PlyCount "106"]
[EventDate "2022.??.??"]
[TimeControl "60"]

1. e4 {[%emt 0:00:03]} c5 {[%emt 0:00:17]} 2. Nf3 {[%emt 0:00:05]} d6 {[%emt 0:
00:00]} 3. d4 {[%emt 0:00:05]} cxd4 {[%emt 0:00:06]} 4. Nxd4 {[%emt 0:00:03]}
Nf6 {[%emt 0:00:10]} 5. Nc3 {[%emt 0:00:05]} Nc6 {[%emt 0:00:08]} 6. Nb3 {
[%emt 0:04:55]} e5 {[%emt 0:06:07]} 7. Bg5 {[%emt 0:00:38]} Be7 {[%emt 0:08:18]
} 8. Qd2 {[%emt 0:00:22]} h6 {[%emt 0:07:12]} 9. Bh4 {[%emt 0:00:51]} g5 {
[%emt 0:08:25]} 10. Bg3 {[%emt 0:00:06]} Be6 {[%emt 0:01:36]} 11. O-O-O {
[%emt 0:00:44]} a6 {[%emt 0:02:08]} 12. f3 {[%emt 0:03:28]} Na5 {[%emt 0:12:22]
} 13. Kb1 {[%emt 0:02:33]} Nc4 {[%emt 0:05:16]} 14. Bxc4 {[%emt 0:01:17]} Bxc4
{[%emt 0:00:06]} 15. h4 {[%emt 0:01:29]} Rg8 {[%emt 0:04:50]} 16. hxg5 {
[%emt 0:00:30]} hxg5 {[%emt 0:00:13]} 17. Bf2 {[%emt 0:06:18]} a5 {[%emt 0:00:
00]} 18. a4 {[%emt 0:13:11]} Qd7 {[%emt 0:05:44]} 19. Be3 {[%emt 0:06:49]} b5 {
[%emt 0:09:36]} 20. axb5 {[%emt 0:04:47]} a4 {[%emt 0:00:27]} 21. Nc1 {[%emt 0:
00:00]} d5 {[%emt 0:06:27]} 22. Bxg5 {[%emt 0:03:35]} d4 {[%emt 0:01:02]} 23.
Bxf6 {[%emt 0:02:22]} Bxf6 {[%emt 0:00:09]} 24. Nd5 {[%emt 0:00:56]} Bxd5 {
[%emt 0:01:06]} 25. exd5 {[%emt 0:00:06]} Qxb5 {[%emt 0:01:21]} 26. Rhe1 {
[%emt 0:01:14]} Kd8 {[%emt 0:04:04]} 27. Qh6 {[%emt 0:08:48]} Ra6 {[%emt 0:00:
00]} 28. Qh7 {[%emt 0:01:48]} Rg7 {[%emt 0:02:11]} 29. Qh8+ {[%emt 0:01:49]}
Kc7 {[%emt 0:00:52]} 30. Nd3 {[%emt 0:03:49]} a3 {[%emt 0:01:09]} 31. b3 {
[%emt 0:02:12]} a2+ {[%emt 0:00:45]} 32. Ka1 {[%emt 0:00:22]} Rxg2 {[%emt 0:00:
00]} 33. Qf8 {[%emt 0:01:13]} Rg7 {[%emt 0:02:19]} 34. Nxe5 {[%emt 0:04:49]} d3
{[%emt 0:00:53]} 35. cxd3 {[%emt 0:02:55]} Qxd5 {[%emt 0:00:45]} 36. d4 {
[%emt 0:13:37]} Kb7 {[%emt 0:00:10]} 37. Qb4+ {[%emt 0:04:45]} Rb6 {[%emt 0:00:
00]} 38. Qc4 {[%emt 0:00:18]} Qd8 {[%emt 0:01:15]} 39. Nxf7 {[%emt 0:04:51]}
Qd7 {[%emt 0:00:13]} 40. Ne5 {[%emt 0:00:48]} Qd6 {[%emt 0:00:24]} 41. Rc1 {
[%emt 0:07:20]} Qd8 {[%emt 0:06:54]} 42. Rg1 {[%emt 0:05:30]} Re7 {[%emt 0:00:
00]} 43. Rg8 {[%emt 0:10:00]} Qxd4+ {[%emt 0:02:21]} 44. Qxd4 {[%emt 0:00:02]}
Bxe5 {[%emt 0:00:07]} 45. Qxe5 {[%emt 0:00:22]} Rxe5 {[%emt 0:00:06]} 46. Rg7+
{[%emt 0:00:04]} Ka6 {[%emt 0:00:49]} 47. Rc3 {[%emt 0:01:56]} Re2 {[%emt 0:00:
00]} 48. Rgc7 {[%emt 0:01:52]} Kb5 {[%emt 0:01:41]} 49. Rc2 {[%emt 0:03:39]}
Re3 {[%emt 0:06:09]} 50. Kxa2 {[%emt 0:02:12]} Rxf3 {[%emt 0:00:35]} 51. R7c5+
{[%emt 0:01:09]} Ka6 {[%emt 0:00:11]} 52. Rc6 {[%emt 0:00:06]} Rfxb3 {[%emt 0:
00:00]} 53. Rxb6+ {[%emt 0:00:13]} Rxb6 {[%emt 0:00:07]} 1/2-1/2

[Event "44th Chess Olympiad Women 2022"]
[Site "Chennai"]
[Date "2022.08.07"]
[Round "9.34"]
[White "Ni Mhuireagain, Eibhia"]
[Black "Granados Ortiz, Maria Jose"]
[Result "0-1"]
[WhiteElo "1638"]
[BlackElo "1753"]
[Annotator "NA"]
[PlyCount "72"]
[EventDate "2022.??.??"]
[TimeControl "60"]

1. e4 {[%emt 0:00:08]} Nf6 {[%emt 0:00:08]} 2. Nc3 {[%emt 0:00:17]} d5 {
[%emt 0:00:14]} 3. e5 {[%emt 0:00:25]} Ne4 {[%emt 0:01:10]} 4. Nce2 {[%emt 0:
00:00]} Nc5 {[%emt 0:09:57]} 5. d4 {[%emt 0:01:20]} Ncd7 {[%emt 0:01:40]} 6. c3
{[%emt 0:07:27]} e6 {[%emt 0:08:47]} 7. f4 {[%emt 0:01:51]} c5 {[%emt 0:00:32]}
8. Nf3 {[%emt 0:02:01]} Be7 {[%emt 0:01:24]} 9. Be3 {[%emt 0:06:02]} Nc6 {
[%emt 0:05:55]} 10. g3 {[%emt 0:11:58]} O-O {[%emt 0:02:38]} 11. Bh3 {[%emt 0:
00:00]} c4 {[%emt 0:02:39]} 12. O-O {[%emt 0:03:07]} Re8 {[%emt 0:09:28]} 13.
f5 {[%emt 0:05:38]} exf5 {[%emt 0:04:11]} 14. Bxf5 {[%emt 0:00:31]} Nf8 {
[%emt 0:00:25]} 15. Bc2 {[%emt 0:03:27]} f6 {[%emt 0:10:09]} 16. Nf4 {[%emt 0:
00:00]} Ne6 {[%emt 0:08:01]} 17. Kh1 {[%emt 0:07:13]} Nc7 {[%emt 0:09:56]} 18.
Nh4 {[%emt 0:20:58]} fxe5 {[%emt 0:07:29]} 19. Qh5 {[%emt 0:06:35]} e4 {
[%emt 0:02:12]} 20. Nf5 {[%emt 0:02:31]} Bxf5 {[%emt 0:04:56]} 21. Qxf5 {
[%emt 0:00:06]} Rf8 {[%emt 0:00:38]} 22. Qg4 {[%emt 0:00:57]} Qc8 {[%emt 0:00:
00]} 23. Qh5 {[%emt 0:01:54]} Qf5 {[%emt 0:02:08]} 24. Qxf5 {[%emt 0:01:34]}
Rxf5 {[%emt 0:00:01]} 25. g4 {[%emt 0:00:19]} Rf7 {[%emt 0:00:34]} 26. b3 {
[%emt 0:01:05]} Na5 {[%emt 0:01:46]} 27. Nh3 {[%emt 0:01:45]} Raf8 {[%emt 0:00:
00]} 28. Rxf7 {[%emt 0:00:13]} Rxf7 {[%emt 0:00:01]} 29. Bf4 {[%emt 0:00:44]}
Nb5 {[%emt 0:00:29]} 30. Bd2 {[%emt 0:01:08]} Rf3 {[%emt 0:01:29]} 31. Nf4 {
[%emt 0:00:27]} Bg5 {[%emt 0:01:34]} 32. Bd1 {[%emt 0:00:13]} Bxf4 {[%emt 0:00:
00]} 33. Bxf4 {[%emt 0:00:23]} Rxf4 {[%emt 0:00:09]} 34. bxc4 {[%emt 0:00:46]}
Nxc4 {[%emt 0:00:26]} 35. Rc1 {[%emt 0:00:27]} Rf1+ {[%emt 0:00:13]} 36. Kg2 {
[%emt 0:00:19]} Rxd1 {[%emt 0:00:24]} 0-1

[Event "44th Chess Olympiad Women 2022"]
[Site "Chennai"]
[Date "2022.08.07"]
[Round "9.34"]
[White "Putar, Lara"]
[Black "Ferrufino, Michelle"]
[Result "0-1"]
[WhiteElo "1969"]
[BlackElo "1811"]
[Annotator "NA RC"]
[PlyCount "146"]
[EventDate "2022.??.??"]
[TimeControl "60"]

1. d4 {[%emt 0:00:03]} d5 {[%emt 0:00:15]} 2. c4 {[%emt 0:00:05]} c6 {[%emt 0:
00:00]} 3. Nf3 {[%emt 0:00:14]} Nf6 {[%emt 0:00:19]} 4. g3 {[%emt 0:00:19]} g6
{[%emt 0:01:06]} 5. Bg2 {[%emt 0:00:07]} dxc4 {[%emt 0:01:04]} 6. O-O {[%emt 0:
00:00]} Bg7 {[%emt 0:00:24]} 7. Qc2 {[%emt 0:16:50]} b5 {[%emt 0:07:47]} 8.
Nbd2 {[%emt 0:07:11]} O-O {[%emt 0:02:44]} 9. e4 {[%emt 0:09:06]} Bb7 {[%emt 0:
00:00]} 10. b3 {[%emt 0:07:28]} cxb3 {[%emt 0:05:53]} 11. Nxb3 {[%emt 0:00:34]}
Na6 {[%emt 0:05:32]} 12. Bd2 {[%emt 0:10:09]} c5 {[%emt 0:18:12]} 13. e5 {
[%emt 0:10:48]} Be4 {[%emt 0:05:45]} 14. Qd1 {[%emt 0:05:54]} Nd7 {[%emt 0:00:
00]} 15. Qe2 {[%emt 0:14:11]} Bd5 {[%emt 0:03:24]} 16. Qxb5 {[%emt 0:01:09]}
Nc7 {[%emt 0:00:30]} 17. Qa5 {[%emt 0:03:58]} cxd4 {[%emt 0:04:18]} 18. Nbxd4 {
[%emt 0:06:11]} Nxe5 {[%emt 0:06:02]} 19. Bf4 {[%emt 0:01:26]} Nxf3+ {[%emt 0:
00:00]} 20. Bxf3 {[%emt 0:00:46]} e5 {[%emt 0:00:57]} 21. Bg5 {[%emt 0:00:46]}
Qxg5 {[%emt 0:02:44]} 22. Bxd5 {[%emt 0:01:11]} Nxd5 {[%emt 0:00:17]} 23. Qxd5
{[%emt 0:00:14]} Rad8 {[%emt 0:00:21]} 24. Nf3 {[%emt 0:00:50]} Qxg3+ {[%emt 0:
00:00]} 25. hxg3 {[%emt 0:00:31]} Rxd5 {[%emt 0:00:07]} 26. Rac1 {[%emt 0:00:
00]} e4 {[%emt 0:00:41]} 27. Nh4 {[%emt 0:00:27]} Rd2 {[%emt 0:00:44]} 28. a4 {
[%emt 0:00:30]} Ra2 {[%emt 0:02:40]} 29. Rc4 {[%emt 0:00:10]} f5 {[%emt 0:00:
00]} 30. Rd1 {[%emt 0:00:32]} Ra1 {[%emt 0:00:48]} 31. Rxa1 {[%emt 0:00:46]}
Bxa1 {[%emt 0:00:08]} 32. Ng2 {[%emt 0:00:25]} Rd8 {[%emt 0:02:41]} 33. Ne3 {
[%emt 0:00:25]} Bd4 {[%emt 0:00:47]} 34. Rc7 {[%emt 0:01:01]} Bb6 {[%emt 0:00:
00]} 35. Rb7 {[%emt 0:00:25]} Rd4 {[%emt 0:03:28]} 36. a5 {[%emt 0:00:32]} Bxa5
{[%emt 0:00:44]} 37. Rxa7 {[%emt 0:00:04]} Bb6 {[%emt 0:00:39]} 38. Ra6 {
[%emt 0:00:30]} Rd6 {[%emt 0:01:44]} 39. Kf1 {[%emt 0:00:15]} Bc5 {[%emt 0:00:
00]} 40. Ra8+ {[%emt 0:00:11]} Kg7 {[%emt 0:00:11]} 41. Ke2 {[%emt 0:04:38]}
Bxe3 {[%emt 0:00:21]} 42. Kxe3 {[%emt 0:00:19]} Rd3+ {[%emt 0:00:09]} 43. Ke2 {
[%emt 0:00:45]} Rb3 {[%emt 0:00:46]} 44. Ra7+ {[%emt 0:00:12]} Kh6 {[%emt 0:00:
00]} 45. Rc7 {[%emt 0:00:08]} Rb8 {[%emt 0:02:19]} 46. Ke3 {[%emt 0:00:17]} Rg8
{[%emt 0:00:59]} 47. Kf4 {[%emt 0:01:35]} Rg7 {[%emt 0:00:31]} 48. Rc1 {
[%emt 0:00:13]} Re7 {[%emt 0:00:23]} 49. Rc6 {[%emt 0:01:14]} Kg7 {[%emt 0:00:
00]} 50. Ra6 {[%emt 0:01:03]} h6 {[%emt 0:01:18]} 51. Rb6 {[%emt 0:00:23]} Kf7
{[%emt 0:00:25]} 52. Ke3 {[%emt 0:00:42]} Re6 {[%emt 0:00:51]} 53. Rb7+ {
[%emt 0:00:20]} Kf6 {[%emt 0:00:09]} 54. Rh7 {[%emt 0:00:40]} h5 {[%emt 0:00:
00]} 55. Ke2 {[%emt 0:00:34]} Rd6 {[%emt 0:00:45]} 56. Ke3 {[%emt 0:00:57]}
Rd3+ {[%emt 0:00:34]} 57. Ke2 {[%emt 0:00:06]} Rf3 {[%emt 0:00:56]} 58. Ra7 {
[%emt 0:03:19]} Kg5 {[%emt 0:00:51]} 59. Ra6 {[%emt 0:03:58]} f4 {[%emt 0:00:
00]} 60. Ra5+ {[%emt 0:00:53]} Kg4 {[%emt 0:00:48]} 61. gxf4 {[%emt 0:00:46]}
Rxf4 {[%emt 0:01:11]} 62. Re5 {[%emt 0:01:06]} h4 {[%emt 0:01:44]} 63. Re8 {
[%emt 0:02:42]} Kh3 {[%emt 0:02:17]} 64. Rg8 {[%emt 0:00:37]} Rg4 {[%emt 0:00:
00]} 65. Kf1 {[%emt 0:00:41]} Kh2 {[%emt 0:00:31]} 66. Rg7 {[%emt 0:00:50]} h3
{[%emt 0:01:55]} 67. Rg8 {[%emt 0:02:18]} Rg1+ {[%emt 0:02:18]} 68. Ke2 {
[%emt 0:00:08]} Kh1 {[%emt 0:01:01]} 69. Rg7 {[%emt 0:02:28]} h2 {[%emt 0:00:
00]} 70. Rg8 {[%emt 0:00:34]} g5 {[%emt 0:02:00]} 71. Rg7 {[%emt 0:03:54]} g4 {
[%emt 0:00:52]} 72. Rg6 {[%emt 0:02:21]} g3 {[%emt 0:01:00]} 73. fxg3 {[%emt 0:
00:00]} Kg2 {[%emt 0:00:10]} 0-1